fUSD/lending_fUSD_20260401
["ID","MTS","AMOUNT","RATE_DAILY","PERIOD"]
[419217533,1775022650313,-10652.17309792,0.00023743,2]
[419217534,1775022650323,-500.0,0.00023743,2]
[419217535,1775022650333,-151.0,0.00023743,2]
[419217536,1775022650343,-315.27372642,0.00023743,2]
[419217537,1775022650352,-11046.30350255,0.00023798,2]
[419217538,1775022650362,-500.0,0.00023798,2]
[419217539,1775022650372,-151.0,0.00023798,2]
[419217540,1775022650382,-326.9388543,0.00023798,2]
[419217541,1775022650391,-1804.727,0.000238,52]
[419217542,1775022650401,-505.0,0.00023813,11]
[419217543,1775022650410,-657.0,0.00023816,2]
[419217544,1775022650421,-11455.01673214,0.00023853,2]
[419217545,1775022650431,-500.0,0.00023853,2]
[419217546,1775022650441,-151.0,0.00023853,2]
[419217547,1775022650452,-339.03559191,0.00023853,2]
[419217548,1775022650461,-500.0,0.00023908,2]
[419217549,1775022650471,-11878.85235123,0.00023908,2]
[419217550,1775022650480,-151.0,0.00023908,2]
[419217551,1775022650489,-500.0,0.00023963,2]
[419217552,1775022650499,-12318.36988823,0.00023963,2]
[419217553,1775022650508,-151.0,0.00023963,2]
[419217554,1775022650518,-211.04046283,0.00023974,2]
[419217555,1775022650528,-156.25504299,0.00023974,2]
[419217556,1775022650539,-151.0,0.00023997,7]
[419217557,1775022650550,-426.0,0.00024,2]
[419217558,1775022650560,-879.0,0.00024,2]
[419217559,1775022650571,-1338.0,0.00024,2]
[419217560,1775022650581,-4165.0,0.00024,2]
[419217561,1775022650590,-1219.0,0.00024,2]
[419217562,1775022650600,-525.0,0.00024,2]
[419217563,1775022650610,-160.0,0.00024,7]
[419217564,1775022650621,-201.93286099,0.00024016,2]
[419217565,1775022650631,-200.0,0.00024016,2]
[419217566,1775022650640,-1377.42282659,0.00024016,2]
[419217567,1775022650650,-201.93286099,0.00024016,2]
[419217568,1775022650659,-181.08010149,0.00024016,2]
[419217569,1775022650669,-200.0,0.00024016,2]
[419217570,1775022650678,-668.65185757,0.00024016,2]
[419217571,1775022650687,-290.26104003,0.00024016,2]
[419217572,1775022650696,-771.01748645,0.00024016,2]
[419217573,1775022650706,-12774.14957409,0.00024018,2]
[419217574,1775022650715,-500.0,0.00024018,2]
[419217575,1775022650724,-151.0,0.00024018,2]
[419217576,1775022650734,-13246.79310833,0.00024073,2]
[419217577,1775022650743,-500.0,0.00024073,2]
[419217578,1775022650753,-151.0,0.00024073,2]
[419217579,1775022650763,-13736.92445334,0.00024128,2]
[419217580,1775022650773,-500.0,0.00024128,2]
[419217581,1775022650782,-151.0,0.00024128,2]
[419217582,1775022650791,-150.68680903,0.000243,30]
[419217583,1775022650801,-199.62462886,0.00024339,120]
[419217584,1775022650810,-829.96897858,0.00024339,120]
[419217585,1775022650819,-209.40437684,0.00024564,2]
[419217586,1775022650829,-200.0,0.00024564,2]
[419217587,1775022650839,-1428.38747117,0.00024564,2]
[419217588,1775022650848,-209.40437684,0.00024564,2]
[419217589,1775022650858,-187.78006525,0.00024564,2]
[419217590,1775022650867,-200.0,0.00024564,2]
[419217591,1775022650877,-294.6626223,0.00024564,2]
[419217592,1775022650886,-301.00069851,0.00024564,2]
[419217593,1775022650895,-799.54513345,0.00024564,2]
[419217594,1775022650904,-231.43,0.00024628,2]
[419217595,1775022650916,-184.18,0.00024642,2]
[419217596,1775022650926,-236.26,0.00024658,2]
[419217597,1775022650937,-500.0,0.00024859,2]
[419217598,1775022650953,-150.0,0.000249,2]
[419217599,1775022650964,-233.18650358,0.000249,2]
[419217600,1775022650974,-200.0,0.000249,2]
[419217601,1775022650985,-200.0,0.000249,2]
[419217602,1775022650996,-200.0,0.000249,2]
[419217603,1775022651007,-200.0,0.000249,2]
[419217604,1775022651016,-151.0,0.000249,2]
[419217605,1775022651028,-423.16589871,0.000249,2]
[419217606,1775022651039,-194512.29021912,0.000249,2]
[419217607,1775022652448,-2742.37269276,0.000249,2]
[419217608,1775022652541,-50607.56999993,0.000249,2]
[419217609,1775022653098,-417.12,0.000137,2]
[419217610,1775022653109,-417.12,0.000137,2]
[419217611,1775022653120,-417.12,0.000137,2]
[419217612,1775022653131,-192.65541444,0.000137,2]
[419217613,1775022653143,-224.46458556,0.000137,2]
[419217614,1775022653153,-298.09179674,0.000137,2]
[419217615,1775022653368,-119.02820326,0.000137,2]
[419217616,1775022653380,-825.0,0.0002,30]
[419217617,1775022653390,-825.0,0.00022436,30]
[419217618,1775022653400,-825.0,0.00024873,60]
[419217619,1775022653411,-64165.39967173,0.000249,2]
[419217620,1775022653796,-686.69924265,0.000212,5]
[419217621,1775022653808,-1394.94118804,0.000212,5]
[419217622,1775022653820,-3452.35956931,0.000212,5]
[419217623,1775022653830,-25933.25248332,0.000249,2]
[419217624,1775022655384,-1226.0,0.000197,2]
[419217625,1775022656451,500.0,8.834e-05,2]
[419217626,1775022661197,300.0,8.834e-05,2]
[419217627,1775022661884,300.0,8.834e-05,2]
[419217628,1775022664607,1000.0,8.692e-05,2]
[419217629,1775022665236,1000.0,8.824e-05,2]
[419217630,1775022665606,1000.0,8.787e-05,2]
[419217631,1775022688177,3489.882,8.658e-05,2]
[419217632,1775022688262,178.229,8.658e-05,2]
[419218526,1775022746359,447.229905,8.79e-05,2]
[419218527,1775022754660,1619.59291216,7.973e-05,2]
[419218528,1775022754684,680.40708784,7.973e-05,2]
[419218529,1775022754834,3472.23,8.024e-05,2]
[419218530,1775022755453,2430.0,8.159e-05,2]
[419218531,1775022755623,2922.04,8.196e-05,2]
[419218532,1775022756140,495.33291216,8.322e-05,2]
[419218533,1775022756162,1704.66708784,8.322e-05,2]
[419218534,1775022756677,2251.03,8.436e-05,2]
[419218535,1775022757200,1600.0,8.479e-05,2]
[419218536,1775022757738,3605.98,8.573e-05,2]
[419218537,1775022758277,838.33291216,8.705e-05,2]
[419218538,1775022758300,1612.40708784,8.705e-05,2]
[419218539,1775022758807,4392.67,8.735e-05,2]
[419218540,1775022759332,1680.0,8.762e-05,2]
[419218541,1775022769826,1888.77484091,8.834e-05,3]
[419218542,1775022795007,500.0,8.834e-05,2]
[419218543,1775022795044,333.29194967,8.834e-05,2]
[419218544,1775022795315,500.0,8.834e-05,2]
[419218545,1775022795347,350.0,8.834e-05,2]
[419218546,1775022795377,250.67788401,8.834e-05,2]
[419218547,1775022801207,450.0,8.834e-05,2]
[419218549,1775022829018,1783.47,8.233e-05,2]
[419218550,1775022833809,1200.0,8.834e-05,2]
[419218552,1775022841333,300.0,8.834e-05,2]
[419218553,1775022842212,150.0,8.834e-05,2]
[419218554,1775022845367,300.0,8.834e-05,2]
[419218560,1775022901304,300.0,8.834e-05,2]
[419218561,1775022901346,1200.0,8.834e-05,2]
[419218562,1775022901386,240.0,8.834e-05,2]
[419218563,1775022965984,2142.57016632,8.825e-05,2]
[419218564,1775022966008,10000.01,8.825e-05,2]
[419218565,1775022966033,10000.01,8.825e-05,2]
[419218566,1775022966058,10000.01,8.825e-05,2]
[419218567,1775022966083,7029.02635322,8.825e-05,2]
[419218573,1775023014130,703.98,8.576e-05,2]
[419218574,1775023022120,150.0,8.834e-05,2]
[419218575,1775023022545,300.0,8.834e-05,2]
[419218576,1775023133605,410.0,8.834e-05,2]
[419218577,1775023201396,1200.0,8.834e-05,2]
[419218578,1775023202067,207.00364678,8.834e-05,2]
[419218579,1775023202094,92.99635322,8.834e-05,2]
[419218580,1775023202207,150.0,8.834e-05,2]
[419218581,1775023218055,-7733.22978586,8.835e-05,2]
[419218582,1775023221889,-10000.01,8.835e-05,2]
[419218586,1775023238843,594.54937506,8.834e-05,2]
[419218587,1775023238883,181.90524045,8.834e-05,2]
[419218588,1775023238951,322.56661851,8.834e-05,2]
[419218589,1775023289782,2791.905,8.658e-05,2]
[419218590,1775023289821,178.229,8.658e-05,2]
[419218591,1775023326773,170.65,7.673e-05,2]
[419218594,1775023382305,150.0,8.834e-05,2]
[419218595,1775023382765,300.0,8.834e-05,2]
[419218596,1775023487851,-5310.20476598,8.835e-05,2]
[419218597,1775023487902,-10000.01,8.835e-05,2]
[419218598,1775023493786,-10000.01,8.835e-05,2]
[419218599,1775023495223,-10000.01,8.835e-05,2]
[419218603,1775023501349,1200.0,8.834e-05,2]
[419218604,1775023515587,150.0,8.822e-05,2]
[419218605,1775023515680,150.0,7.94e-05,2]
[419218606,1775023515726,150.0,7.94e-05,2]
[419218607,1775023515783,150.0,8.234e-05,2]
[419218608,1775023515850,150.0,8.528e-05,2]
[419218609,1775023515926,150.0,8.822e-05,2]
[419218610,1775023515966,150.0,7.94e-05,2]
[419218611,1775023516013,150.0,8.234e-05,2]
[419218612,1775023516085,150.0,8.528e-05,2]
[419218613,1775023516153,150.0,8.822e-05,2]
[419218614,1775023520621,150.0,7.94e-05,2]
[419218615,1775023520691,150.0,8.381e-05,2]
[419218616,1775023520725,150.0,8.822e-05,2]
[419218617,1775023521830,150.0,8.822e-05,2]
[419218618,1775023523322,150.0,7.94e-05,2]
[419218619,1775023523354,150.0,8.087e-05,2]
[419218620,1775023523413,150.0,8.234e-05,2]
[419218621,1775023523481,150.0,8.381e-05,2]
[419218622,1775023523558,150.0,8.528e-05,2]
[419218623,1775023523625,150.0,8.675e-05,2]
[419218624,1775023523706,150.0,8.822e-05,2]
[419218625,1775023523778,150.0,7.94e-05,2]
[419218626,1775023534771,150.0,7.94e-05,2]
[419218627,1775023534822,150.0,8.234e-05,2]
[419218628,1775023534911,150.0,8.528e-05,2]
[419218629,1775023534965,150.0,8.822e-05,2]
[419218630,1775023537242,150.0,7.94e-05,2]
[419218631,1775023537299,150.00000001,8.822e-05,2]
[419218632,1775023537739,150.0,7.94e-05,2]
[419218633,1775023537782,150.0,8.234e-05,2]
[419218634,1775023537852,150.0,8.528e-05,2]
[419218635,1775023537922,150.0,8.822e-05,2]
[419218636,1775023556585,1221.8,4.796e-05,2]
[419218637,1775023556775,1221.8,5.048e-05,2]
[419218638,1775023556957,1221.8,5.301e-05,2]
[419218639,1775023557132,334.60999999,5.553e-05,2]
[419218640,1775023557156,887.19000001,5.553e-05,2]
[419218641,1775023557325,1221.8,5.805e-05,2]
[419218642,1775023557509,1221.8,6.058e-05,2]
[419218643,1775023557717,1221.8,6.31e-05,2]
[419218644,1775023557939,1221.8,6.563e-05,2]
[419218645,1775023558126,1221.8,6.815e-05,2]
[419218646,1775023558334,1221.8,7.068e-05,2]
[419218647,1775023558523,1221.8,7.32e-05,2]
[419218648,1775023558734,560.21999999,7.572e-05,2]
[419218649,1775023558759,661.58000001,7.572e-05,2]
[419218650,1775023558934,1221.8,7.825e-05,2]
[419218651,1775023559127,1221.8,8.077e-05,2]
[419218652,1775023559335,1221.8,8.33e-05,2]
[419218653,1775023559524,1221.8,8.582e-05,2]
[419218654,1775023559743,1221.8,8.834e-05,2]
[419218655,1775023561848,300.0,8.834e-05,2]
[419218656,1775023562144,150.0,8.834e-05,2]
[419218657,1775023564370,475.13,8.537e-05,2]
[419218658,1775023578427,1000.0,8.833e-05,2]
[419218659,1775023592082,416.18456254,8.834e-05,2]
[419218660,1775023592116,225.79663296,8.834e-05,2]
[419218661,1775023620478,662.31880449,8.735e-05,2]
[419218662,1775023620505,10000.01,8.735e-05,2]
[419218663,1775023620531,10000.01,8.735e-05,2]
[419218664,1775023620556,10000.01,8.735e-05,2]
[419218665,1775023620582,10000.01,8.735e-05,2]
[419218666,1775023620608,10000.01,8.735e-05,2]
[419218667,1775023620633,10000.01,8.735e-05,2]
[419218668,1775023620658,10000.01,8.735e-05,2]
[419218669,1775023620684,10000.01,8.735e-05,2]
[419218670,1775023620710,10000.01,8.735e-05,2]
[419218671,1775023660708,10000.01,8e-05,2]
[419218672,1775023660730,5013.32494754,8e-05,2]
[419218673,1775023691620,942.73,7.602e-05,2]
[419218674,1775023692153,1000.0,7.63e-05,2]
[419218675,1775023692655,1510.19,7.678e-05,2]
[419218676,1775023693168,1533.76505246,7.768e-05,2]
[419218677,1775023693194,263.38494754,7.768e-05,2]
[419218678,1775023693691,1180.0,7.885e-05,2]
[419218679,1775023694209,1000.0,7.882e-05,2]
[419218680,1775023694737,1410.0,8.015e-05,2]
[419218681,1775023695257,740.0,8.088e-05,2]
[419218682,1775023695768,1475.79,8.096e-05,2]
[419218683,1775023696296,1400.0,8.141e-05,2]
[419218684,1775023696842,1100.0,8.284e-05,2]
[419218685,1775023697349,1240.0,8.405e-05,2]
[419218686,1775023697872,190.83505246,8.469e-05,2]
[419218687,1775023697896,1909.16494754,8.469e-05,2]
[419218688,1775023698660,906.96,8.509e-05,2]
[419218689,1775023699195,1100.0,8.518e-05,2]
[419218690,1775023699729,840.74,8.647e-05,2]
[419218691,1775023702323,1270.0,8.721e-05,2]
[419218692,1775023715121,291.32919378,8.734e-05,2]
[419218693,1775023715160,158.05764307,8.734e-05,2]
[419218697,1775023742182,150.0,8.734e-05,2]
[419218698,1775023765448,678.86,7.936e-05,2]
[419218699,1775023801209,1200.0,8.734e-05,2]
[419218700,1775023801243,300.0,8.734e-05,2]
[419218701,1775023801287,300.0,8.734e-05,2]
[419218703,1775023809666,894.89821561,8.029e-05,2]
[419218704,1775023809689,957.52178439,8.029e-05,2]
[419218705,1775023825567,150.0,8.734e-05,2]
[419218709,1775023831535,-673.97872682,8.735e-05,2]
[419218710,1775023831588,-1248.86929294,8.735e-05,2]
[419218711,1775023831643,-3058.63601826,8.735e-05,2]
[419218712,1775023831654,-5432.676419,8.735e-05,2]
[419218713,1775023831724,-471.84604647,8.735e-05,2]
[419218714,1775023831735,-250.0,8.735e-05,2]
[419218715,1775023831791,-393.653476,8.735e-05,2]
[419218716,1775023831802,-3778.7015311,8.735e-05,2]
[419218717,1775023831815,-818.42572312,8.735e-05,2]
[419218718,1775023831826,-464.72178409,8.735e-05,2]
[419218719,1775023831837,-1392746.08217771,8.735e-05,2]
[419218720,1775023831847,-150.0,8.735e-05,2]
[419218721,1775023831857,-250.0,8.735e-05,2]
[419218723,1775023831865,-5000.0,8.735e-05,2]
[419218732,1775023832197,-5000.0,8.735e-05,2]
[419218733,1775023832209,-250.0,8.735e-05,2]
[419218734,1775023832218,-498.90211514,8.735e-05,2]
[419218735,1775023832227,-1074.99402984,8.735e-05,2]
[419218736,1775023832237,-384.70089177,8.735e-05,2]
[419218737,1775023832247,-275.0,8.735e-05,2]
[419218738,1775023832257,-50000.0,8.735e-05,2]
[419218739,1775023832267,-1017.62,8.736e-05,2]
[419218740,1775023832276,-999.89,8.78e-05,2]
[419218741,1775023832286,-2713.14,8.804e-05,2]
[419218742,1775023832296,-500.0,8.813e-05,2]
[419218743,1775023832305,-500.0,8.813e-05,2]
[419218744,1775023832314,-500.0,8.813e-05,2]
[419218745,1775023832324,-500.0,8.813e-05,2]
[419218746,1775023832334,-500.0,8.813e-05,2]
[419218747,1775023832343,-632.53007645,8.813e-05,2]
[419218748,1775023832352,-500.0,8.813e-05,2]
[419218749,1775023832362,-500.0,8.813e-05,2]
[419218750,1775023832372,-500.0,8.813e-05,2]
[419218751,1775023832382,-500.0,8.813e-05,2]
[419218752,1775023832391,-166.07427126,8.813e-05,2]
[419218753,1775023832400,-500.0,8.813e-05,2]
[419218754,1775023832409,-1130.98800481,8.813e-05,2]
[419218755,1775023832418,-467089.4438804,8.835e-05,2]
[419218756,1775023832430,-2609.73206816,8.835e-05,2]
[419218757,1775023832442,-5513.77289631,8.835e-05,2]
[419218758,1775023834048,604.14830885,8.734e-05,2]
[419218764,1775023840959,-16437.20481205,8.835e-05,2]
[419218765,1775023840973,-12619.39971784,8.835e-05,2]
[419218766,1775023841009,-16651.98825217,8.835e-05,2]
[419218767,1775023841022,-11861.86144857,8.835e-05,2]
[419218768,1775023841036,-1967216.5969245,8.835e-05,2]
[419218769,1775023841046,-2435.5498,8.835e-05,2]
[419218770,1775023841056,-193.0,8.835e-05,2]
[419218771,1775023841066,-194.61263594,8.835e-05,2]
[419218772,1775023841075,-1000.0,8.835e-05,2]
[419218773,1775023841085,-1000.0,8.835e-05,2]
[419218774,1775023841094,-881.28293299,8.835e-05,2]
[419218775,1775023841103,-1988.12723974,8.835e-05,2]
[419218776,1775023841112,-208.87794102,8.835e-05,2]
[419218777,1775023841122,-288.05924458,8.835e-05,2]
[419218778,1775023841131,-1650.81744722,8.835e-05,2]
[419218779,1775023841141,-150.0,8.9e-05,2]
[419218780,1775023841150,-1597.65,8.905e-05,2]
[419218781,1775023841159,-1221.8,9.087e-05,2]
[419218782,1775023841168,-339.42,9.113e-05,2]
[419218783,1775023841178,-371.0,9.144e-05,2]
[419218784,1775023841187,-1899.0,9.167e-05,2]
[419218785,1775023841196,-924.0,9.186e-05,2]
[419218786,1775023841205,-404.0,9.204e-05,2]
[419218787,1775023841215,-228.0,9.222e-05,2]
[419218788,1775023841224,-521.0,9.24e-05,2]
[419218789,1775023841233,-500.0,9.24e-05,2]
[419218790,1775023841242,-872.0,9.31e-05,2]
[419218791,1775023841251,-165.0,9.314e-05,2]
[419218792,1775023841261,-1000.0,9.328e-05,2]
[419218793,1775023841270,-285.0,9.332e-05,2]
[419218794,1775023841280,-994.0,9.334e-05,2]
[419218795,1775023841289,-1221.8,9.339e-05,2]
[419218796,1775023841299,-306.0,9.351e-05,2]
[419218797,1775023841308,-1000.0,9.361e-05,2]
[419218798,1775023841317,-500.0,9.361e-05,2]
[419218799,1775023841330,-1000.0,9.361e-05,2]
[419218800,1775023841339,-1000.0,9.361e-05,2]
[419218801,1775023841350,-1000.0,9.361e-05,2]
[419218802,1775023841359,-901.53330761,9.361e-05,2]
[419218803,1775023841369,-1000.0,9.361e-05,2]
[419218804,1775023841378,-315.41304023,9.361e-05,2]
[419218805,1775023841387,-1236.0,9.369e-05,2]
[419218806,1775023841396,-1620.0,9.388e-05,2]
[419218807,1775023841406,-373.0,9.407e-05,2]
[419218808,1775023841415,-1993.0,9.425e-05,2]
[419218809,1775023841424,-382.95,9.47e-05,2]
[419218810,1775023841434,-2027566.34874647,9.5e-05,3]
[419218811,1775023841443,-500.0,9.514e-05,2]
[419218812,1775023841453,-150.0,9.541e-05,2]
[419218813,1775023841463,-2750.6,9.541e-05,2]
[419218814,1775023841472,-2750.6,9.541e-05,2]
[419218815,1775023841481,-1221.8,9.592e-05,2]
[419218816,1775023841491,-295.04,9.592e-05,2]
[419218817,1775023841500,-8930.68,9.592e-05,2]
[419218818,1775023841509,-34047.1,9.592e-05,2]
[419218819,1775023841518,-3929.67,9.592e-05,2]
[419218820,1775023841527,-500.0,9.592e-05,2]
[419218821,1775023841538,-9956.12,9.592e-05,2]
[419218822,1775023841547,-184.17,9.592e-05,2]
[419218823,1775023841556,-9104.48,9.592e-05,2]
[419218824,1775023841566,-199459.32,9.592e-05,2]
[419218825,1775023841575,-255.0,9.607e-05,2]
[419218826,1775023841584,-1680.0,9.607e-05,2]
[419218827,1775023841593,-5000.0,9.608e-05,2]
[419218828,1775023841603,-5000.0,9.608e-05,2]
[419218829,1775023841612,-193.0,9.608e-05,2]
[419218830,1775023841622,-250.0,9.608e-05,2]
[419218831,1775023841631,-1231.89,9.668e-05,2]
[419218832,1775023841640,-3326.07,9.67e-05,2]
[419218833,1775023841650,-9999.99,9.67e-05,2]
[419218834,1775023841659,-1930.0805,9.699e-05,2]
[419218835,1775023841668,-193.0,9.718e-05,2]
[419218836,1775023841677,-500.0,9.788e-05,2]
[419218837,1775023841686,-1500.0,9.908e-05,2]
[419218838,1775023841695,-1500.0,9.908e-05,2]
[419218839,1775023841704,-1500.0,9.908e-05,2]
[419218840,1775023841713,-1500.0,9.908e-05,2]
[419218841,1775023841722,-1500.0,9.908e-05,2]
[419218842,1775023841732,-162.08085631,0.0001,2]
[419218843,1775023841740,-634.74884807,0.0001,2]
[419218844,1775023841750,-198.35398684,0.0001,2]
[419218845,1775023841759,-579.48260867,0.0001,2]
[419218846,1775023841768,-393.68572829,0.0001,2]
[419218847,1775023841777,-151.0,0.0001,2]
[419218848,1775023841786,-151.0,0.0001,2]
[419218849,1775023841795,-151.0,0.0001,2]
[419218850,1775023841804,-151.0,0.0001,2]
[419218851,1775023841813,-151.0,0.0001,2]
[419218852,1775023841822,-151.0,0.0001,2]
[419218853,1775023841831,-151.0,0.0001,2]
[419218854,1775023841840,-151.0,0.0001,2]
[419218855,1775023841849,-151.0,0.0001,2]
[419218856,1775023841858,-151.0,0.0001,2]
[419218857,1775023841867,-151.0,0.0001,2]
[419218858,1775023841876,-151.0,0.0001,2]
[419218859,1775023841885,-223.71114096,0.0001,2]
[419218860,1775023841894,-738.34266848,0.0001,2]
[419218861,1775023841902,-1443.67752125,0.0001,2]
[419218862,1775023841911,-540.30350779,0.0001,2]
[419218863,1775023841920,-540.30350779,0.0001,2]
[419218864,1775023841928,-7776.47514797,0.0001,2]
[419218865,1775023841937,-500.0,0.00010062,2]
[419218866,1775023841946,-261.54857406,0.000101,2]
[419218867,1775023841955,-184.17,0.00010125,2]
[419218868,1775023841964,-1600.0,0.00010202,2]
[419218869,1775023841974,-192.3989,0.000103,7]
[419218870,1775023841983,-500.0,0.00010336,2]
[419218871,1775023841992,-347.14,0.00010367,2]
[419218872,1775023842001,-151.0,0.00010453,2]
[419218873,1775023842010,-2000.0,0.00010456,2]
[419218874,1775023842018,-2000.0,0.00010456,2]
[419218875,1775023842027,-2000.0,0.00010456,2]
[419218876,1775023842036,-2000.0,0.00010456,2]
[419218877,1775023842045,-502.12032678,0.00010456,2]
[419218878,1775023842054,-433.0,0.00010568,2]
[419218879,1775023842063,-2351.0,0.00010568,2]
[419218880,1775023842072,-184.17,0.00010657,2]
[419218881,1775023842081,-270.14237308,0.000107,2]
[419218882,1775023842090,-212.51,0.00010775,2]
[419218883,1775023842099,-1626.943071,0.00010877,2]
[419218884,1775023842107,-295.219144,0.00010877,2]
[419218885,1775023842116,-520.882216,0.00010877,2]
[419218886,1775023842125,-500.0,0.00010958,2]
[419218887,1775023842134,-500.0,0.00010958,3]
[419218888,1775023842143,-500.0,0.00010958,4]
[419218889,1775023842152,-500.0,0.00010958,5]
[419218890,1775023842161,-500.0,0.00010958,6]
[419218891,1775023842170,-500.0,0.00010958,7]
[419218892,1775023842179,-500.0,0.00010958,8]
[419218893,1775023842188,-500.0,0.00010958,9]
[419218894,1775023842197,-500.0,0.00010958,10]
[419218895,1775023842206,-500.0,0.00010958,11]
[419218896,1775023842215,-500.0,0.00010958,12]
[419218897,1775023842224,-500.0,0.00010958,13]
[419218898,1775023842232,-500.0,0.00010958,14]
[419218899,1775023842241,-391.78082543,0.00010958,15]
[419218900,1775023842250,-189.46461618,0.00010959,2]
[419218901,1775023842259,-5867.65943792,0.00011,2]
[419218902,1775023842268,-899.64837719,0.00011004,2]
[419218903,1775023842277,-2500.0,0.00011004,2]
[419218904,1775023842286,-2156.20131343,0.00011004,2]
[419218905,1775023842295,-1703.19002491,0.00011004,2]
[419218906,1775023842304,-856.0,0.00011072,2]
[419218907,1775023842313,-856.0,0.00011072,2]
[419218908,1775023842322,-856.0,0.00011072,2]
[419218909,1775023842331,-856.0,0.00011072,2]
[419218910,1775023842339,-856.0,0.00011072,2]
[419218911,1775023842349,-856.0,0.00011072,2]
[419218913,1775023842358,-500.0,0.00011072,2]
[419218915,1775023842367,-856.0,0.00011072,2]
[419218917,1775023842376,-500.0,0.00011072,2]
[419218918,1775023842385,-856.0,0.00011072,2]
[419218919,1775023842394,-500.0,0.00011072,2]
[419218920,1775023842405,-856.0,0.00011072,2]
[419218921,1775023842414,-856.0,0.00011072,2]
[419218922,1775023842424,-500.0,0.00011072,2]
[419218923,1775023842434,-856.0,0.00011072,2]
[419218924,1775023842444,-500.0,0.00011072,2]
[419218925,1775023842454,-856.0,0.00011072,2]
[419218926,1775023842463,-500.0,0.00011072,2]
[419218927,1775023842473,-167.7403778,0.00011072,2]
[419218928,1775023842483,-856.0,0.00011072,2]
[419218929,1775023842491,-856.0,0.00011072,2]
[419218930,1775023842501,-856.0,0.00011072,2]
[419218931,1775023842511,-856.0,0.00011072,2]
[419218932,1775023842520,-856.0,0.00011072,2]
[419218933,1775023842529,-856.0,0.00011072,2]
[419218934,1775023842538,-856.0,0.00011072,2]
[419218935,1775023842547,-856.0,0.00011072,2]
[419218936,1775023842556,-856.0,0.00011072,2]
[419218937,1775023842565,-856.0,0.00011072,2]
[419218938,1775023842575,-856.0,0.00011072,2]
[419218939,1775023842583,-874.0,0.00011072,2]
[419218940,1775023842594,-150.0,0.00011072,2]
[419218941,1775023842604,-150.0,0.00011072,2]
[419218942,1775023842612,-150.0,0.00011072,2]
[419218943,1775023842621,-197.65781346,0.00011072,2]
[419218945,1775023842630,-160.36303217,0.00011073,2]
[419218947,1775023842640,-500.0,0.00011073,2]
[419218948,1775023842649,-500.0,0.00011073,2]
[419218949,1775023842659,-16705.5248797,0.00011099,2]
[419218950,1775023842668,-16705.52487968,0.00011099,2]
[419218951,1775023842678,-364.264665,0.0001113,2]
[419218952,1775023842687,-664.243075,0.00011165,2]
[419218953,1775023842697,-184.17,0.0001119,2]
[419218954,1775023842706,-3922.328461,0.00011357,2]
[419218955,1775023842715,-3903.363023,0.00011393,2]
[419218956,1775023842724,-3956.374485,0.00011393,2]
[419218957,1775023842733,-1600.0,0.00011477,2]
[419218958,1775023842743,-3571.85,0.00011507,2]
[419218959,1775023842751,-170.65,0.0001151,2]
[419218960,1775023842760,-250.0,0.00011541,2]
[419218962,1775023842769,-1954.1981373,0.00011552,2]
[419218964,1775023842779,-16705.52487968,0.00011589,2]
[419218967,1775023842788,-590.85419464,0.00011621,2]
[419218969,1775023842798,-501.29164834,0.00011621,2]
[419218970,1775023842807,-736.0,0.00011624,2]
[419218972,1775023842817,-3292.0,0.00011624,2]
[419218973,1775023842826,-246.7822,0.000117,12]
[419218974,1775023842835,-184.17,0.00011723,2]
[419218975,1775023842844,-184.17,0.00012256,2]
[419218976,1775023842853,-168.26,0.00012625,2]
[419218977,1775023842862,-1600.0,0.00012753,2]